[Event "Chessable Masters - Torneo preliminare"]
[White "Raja, Rithvik R"]
[Black "Ponkratov, Pavel"]
[WhiteFideId "35007394"]
[BlackFideId "4157800"]
[WhiteElo "2387"]
[BlackElo "2586"]
[Result "0-1"]
[Round "2"]
[TimeControl "600+2"]
[Date "2023.03.13"]
[WhiteClock "0:01:06"]
[BlackClock "0:03:57"]

1. d4 {[%clk 0:10:00]}  Nf6 {[%clk 0:09:57]} 2. c4 {[%clk 0:10:01]}  e6 {[%clk 0:09:57]} 3. Nf3 {[%clk 0:09:58]}  c5 {[%clk 0:09:57]} 4. Nc3 {[%clk 0:09:55]}  cxd4 {[%clk 0:09:58]} 5. Nxd4 {[%clk 0:09:57]}  Nc6 {[%clk 0:10:00]} 6. a3 {[%clk 0:09:58]}  Bc5 {[%clk 0:09:55]} 7. Nb3 {[%clk 0:09:57]}  Be7 {[%clk 0:09:56]} 8. e4 {[%clk 0:09:54]}  O-O {[%clk 0:09:55]} 9. Be2 {[%clk 0:09:52]}  b6 {[%clk 0:09:55]} 10. O-O {[%clk 0:09:48]}  Qc7 {[%clk 0:09:56]} 11. Be3 {[%clk 0:09:46]}  Bb7 {[%clk 0:09:56]} 12. Rc1 {[%clk 0:09:42]}  Rac8 {[%clk 0:09:54]} 13. Nd2 {[%clk 0:09:32]}  Rfd8 {[%clk 0:09:51]} 14. f4 {[%clk 0:08:54]}  d5 {[%clk 0:08:47]} 15. cxd5 {[%clk 0:07:32]}  exd5 {[%clk 0:08:46]} 16. exd5 {[%clk 0:06:46]}  Nxd5 {[%clk 0:08:46]} 17. Nxd5 {[%clk 0:06:48]}  Rxd5 {[%clk 0:08:47]} 18. Bf3 {[%clk 0:06:50]}  Rd6 {[%clk 0:08:24]} 19. Qe2 {[%clk 0:06:20]}  Re8 {[%clk 0:08:13]} 20. Nc4 {[%clk 0:06:14]}  Re6 {[%clk 0:07:39]} 21. Ne5 {[%clk 0:06:11]}  Bf6 {[%clk 0:05:38]} 22. Bd5 {[%clk 0:05:51]}  Bxe5 {[%clk 0:05:38]} 23. fxe5 {[%clk 0:05:28]}  Qxe5 {[%clk 0:05:33]} 24. Bxe6 {[%clk 0:05:25]}  Rxe6 {[%clk 0:05:34]} 25. Rce1 {[%clk 0:05:08]}  h6 {[%clk 0:05:16]} 26. Qf2 {[%clk 0:05:01]}  Rf6 {[%clk 0:05:17]} 27. Qd2 {[%clk 0:04:43]}  Rd6 {[%clk 0:04:57]} 28. Qc2 {[%clk 0:04:25]}  Rg6 {[%clk 0:04:47]} 29. Qf2 {[%clk 0:02:38]}  Qd5 {[%clk 0:04:09]} 30. Bf4 {[%clk 0:02:17]}  Nd4 {[%clk 0:04:05]} 31. Bg3 {[%clk 0:02:11]}  Rf6 {[%clk 0:04:04]} 32. Re8+ {[%clk 0:01:20]}  Kh7 {[%clk 0:04:03]} 33. Bf4 {[%clk 0:01:02]}  Rxf4 {[%clk 0:04:01]} 34. Qg3 {[%clk 0:01:04]}  Rxf1+ {[%clk 0:03:55]} 35. Kxf1 {[%clk 0:01:06]}  Qb5+ {[%clk 0:03:57]} 0-1


[Site "Internet"]

[Event "Chessable Masters - Torneo preliminare"]
[White "Flores, Diego"]
[Black "Hong, Andrew"]
[WhiteFideId "108049"]
[BlackFideId "2099438"]
[WhiteElo "2598"]
[BlackElo "2590"]
[Result "1-0"]
[Round "2"]
[TimeControl "600+2"]
[Date "2023.03.13"]
[WhiteClock "0:00:14"]
[BlackClock "0:00:14"]

1. c4 {[%clk 0:10:01]}  Nf6 {[%clk 0:09:59]} 2. Nc3 {[%clk 0:10:00]}  c5 {[%clk 0:09:58]} 3. g3 {[%clk 0:09:56]}  g6 {[%clk 0:09:58]} 4. Bg2 {[%clk 0:09:57]}  Bg7 {[%clk 0:09:59]} 5. d3 {[%clk 0:09:53]}  Nc6 {[%clk 0:09:55]} 6. e4 {[%clk 0:09:33]}  d6 {[%clk 0:09:52]} 7. Nge2 {[%clk 0:09:34]}  O-O {[%clk 0:09:52]} 8. O-O {[%clk 0:09:33]}  a6 {[%clk 0:09:46]} 9. h3 {[%clk 0:09:14]}  Rb8 {[%clk 0:09:44]} 10. a4 {[%clk 0:09:10]}  Ne8 {[%clk 0:09:33]} 11. Be3 {[%clk 0:09:10]}  Nd4 {[%clk 0:09:30]} 12. Rb1 {[%clk 0:09:09]}  Nxe2+ {[%clk 0:09:17]} 13. Qxe2 {[%clk 0:09:03]}  Nc7 {[%clk 0:09:16]} 14. Qd2 {[%clk 0:08:51]}  b5 {[%clk 0:09:14]} 15. axb5 {[%clk 0:08:25]}  axb5 {[%clk 0:09:14]} 16. b4 {[%clk 0:07:58]}  bxc4 {[%clk 0:09:02]} 17. bxc5 {[%clk 0:07:58]}  Rxb1 {[%clk 0:08:57]} 18. Rxb1 {[%clk 0:07:58]}  cxd3 {[%clk 0:08:35]} 19. c6 {[%clk 0:07:58]}  Ba6 {[%clk 0:08:21]} 20. Bb6 {[%clk 0:07:45]}  e6 {[%clk 0:07:05]} 21. Ra1 {[%clk 0:05:29]}  Bc4 {[%clk 0:06:33]} 22. Ra7 {[%clk 0:03:04]}  Qf6 {[%clk 0:05:09]} 23. Bxc7 {[%clk 0:03:03]}  Qxc3 {[%clk 0:05:08]} 24. Qxc3 {[%clk 0:03:04]}  Bxc3 {[%clk 0:05:10]} 25. Bxd6 {[%clk 0:03:06]}  Rc8 {[%clk 0:04:26]} 26. c7 {[%clk 0:03:05]}  Kg7 {[%clk 0:03:12]} 27. Rb7 {[%clk 0:02:47]}  Ba5 {[%clk 0:02:51]} 28. Ra7 {[%clk 0:01:21]}  Bb6 {[%clk 0:02:30]} 29. Rb7 {[%clk 0:01:22]}  Ba5 {[%clk 0:02:01]} 30. Bf3 {[%clk 0:01:23]}  d2 {[%clk 0:01:53]} 31. Bd1 {[%clk 0:01:02]}  f6 {[%clk 0:01:32]} 32. f3 {[%clk 0:01:01]}  Bc3 {[%clk 0:01:13]} 33. f4 {[%clk 0:00:46]}  f5 {[%clk 0:00:45]} 34. Rb8 {[%clk 0:00:36]}  Ba6 {[%clk 0:00:41]} 35. e5 {[%clk 0:00:36]}  Kf7 {[%clk 0:00:35]} 36. Kf2 {[%clk 0:00:37]}  Ba5 {[%clk 0:00:27]} 37. Be2 {[%clk 0:00:31]}  h5 {[%clk 0:00:06]} 38. g4 {[%clk 0:00:29]}  fxg4 {[%clk 0:00:06]} 39. hxg4 {[%clk 0:00:31]}  h4 {[%clk 0:00:06]} 40. Bf3 {[%clk 0:00:14]}  Bxc7 {[%clk 0:00:03]} 41. Rxc8 {[%clk 0:00:11]}  Bb6+ {[%clk 0:00:05]} 42. Bc5 {[%clk 0:00:11]}  Bxc8 {[%clk 0:00:05]} 43. Bxb6 {[%clk 0:00:13]}  Bb7 {[%clk 0:00:07]} 44. Bd1 {[%clk 0:00:11]}  g5 {[%clk 0:00:05]} 45. fxg5 {[%clk 0:00:12]}  Kg6 {[%clk 0:00:06]} 46. Be3 {[%clk 0:00:13]}  h3 {[%clk 0:00:04]} 47. Kg3 {[%clk 0:00:14]}  Bg2 {[%clk 0:00:06]} 48. Bxd2 {[%clk 0:00:15]}  Kg7 {[%clk 0:00:07]} 49. Bc2 {[%clk 0:00:16]}  Kf7 {[%clk 0:00:08]} 50. g6+ {[%clk 0:00:17]}  Kg7 {[%clk 0:00:10]} 51. Bg5 {[%clk 0:00:18]}  Bf1 {[%clk 0:00:10]} 52. Bf6+ {[%clk 0:00:19]}  Kg8 {[%clk 0:00:12]} 53. Be4 {[%clk 0:00:18]}  Kf8 {[%clk 0:00:10]} 54. Bc6 {[%clk 0:00:17]}  Kg8 {[%clk 0:00:11]} 55. Bd7 {[%clk 0:00:17]}  Bc4 {[%clk 0:00:10]} 56. Kxh3 {[%clk 0:00:18]}  Kf8 {[%clk 0:00:12]} 57. Kh4 {[%clk 0:00:19]}  Kg8 {[%clk 0:00:14]} 58. Kg5 {[%clk 0:00:20]}  Kf8 {[%clk 0:00:16]} 59. Kh6 {[%clk 0:00:18]}  Kg8 {[%clk 0:00:18]} 60. Be8 {[%clk 0:00:19]}  Bd3 {[%clk 0:00:16]} 61. Be7 {[%clk 0:00:15]}  Kh8 {[%clk 0:00:14]} 62. Bf7 {[%clk 0:00:14]} 1-0


[Site "Internet"]

[Event "Chessable Masters - Torneo preliminare"]
[White "Mareco, Sandro"]
[Black "Salgado Lopez, Ivan"]
[WhiteFideId "112275"]
[BlackFideId "2257327"]
[WhiteElo "2541"]
[BlackElo "2554"]
[Result "1-0"]
[Round "2"]
[TimeControl "600+2"]
[Date "2023.03.13"]
[WhiteClock "0:07:06"]
[BlackClock "0:04:59"]

1. d4 {[%clk 0:10:01]}  Nf6 {[%clk 0:09:43]} 2. c4 {[%clk 0:10:02]}  e6 {[%clk 0:09:41]} 3. Nf3 {[%clk 0:10:03]}  d5 {[%clk 0:09:40]} 4. g3 {[%clk 0:10:04]}  Be7 {[%clk 0:09:41]} 5. Bg2 {[%clk 0:10:05]}  O-O {[%clk 0:09:42]} 6. O-O {[%clk 0:10:06]}  dxc4 {[%clk 0:09:42]} 7. Qc2 {[%clk 0:10:07]}  a6 {[%clk 0:09:43]} 8. a4 {[%clk 0:10:08]}  Nc6 {[%clk 0:09:43]} 9. Qxc4 {[%clk 0:10:08]}  Qd5 {[%clk 0:09:45]} 10. Nbd2 {[%clk 0:10:09]}  Rd8 {[%clk 0:09:44]} 11. e3 {[%clk 0:10:11]}  Qxc4 {[%clk 0:09:43]} 12. Nxc4 {[%clk 0:10:11]}  a5 {[%clk 0:09:44]} 13. Bd2 {[%clk 0:10:08]}  Nd5 {[%clk 0:09:43]} 14. Rfc1 {[%clk 0:10:02]}  Ndb4 {[%clk 0:09:21]} 15. Nfe5 {[%clk 0:08:28]}  Nxe5 {[%clk 0:09:16]} 16. Nxe5 {[%clk 0:08:29]}  c6 {[%clk 0:09:16]} 17. Bxb4 {[%clk 0:08:24]}  Bxb4 {[%clk 0:09:02]} 18. Nd3 {[%clk 0:08:22]}  Be7 {[%clk 0:08:57]} 19. Nc5 {[%clk 0:08:20]}  Rb8 {[%clk 0:08:49]} 20. Rab1 {[%clk 0:08:21]}  f6 {[%clk 0:08:33]} 21. b4 {[%clk 0:08:08]}  axb4 {[%clk 0:08:11]} 22. Rxb4 {[%clk 0:08:08]}  e5 {[%clk 0:08:08]} 23. Bxc6 {[%clk 0:07:18]}  exd4 {[%clk 0:07:00]} 24. exd4 {[%clk 0:07:18]}  Bh3 {[%clk 0:05:50]} 25. Bxb7 {[%clk 0:07:07]}  Kf8 {[%clk 0:04:59]} 26. a5 {[%clk 0:07:06]} 1-0


[Site "Internet"]

[Event "Chessable Masters - Torneo preliminare"]
[White "Narayanan, Srinath"]
[Black "Steinberg, Nitzan"]
[WhiteFideId "5018420"]
[BlackFideId "2801795"]
[WhiteElo "2482"]
[BlackElo "2500"]
[Result "1/2-1/2"]
[Round "2"]
[TimeControl "600+2"]
[Date "2023.03.13"]
[WhiteClock "0:06:06"]
[BlackClock "0:05:28"]

1. Nf3 {[%clk 0:08:45]}  d5 {[%clk 0:09:59]} 2. e3 {[%clk 0:08:46]}  Nf6 {[%clk 0:10:00]} 3. c4 {[%clk 0:08:47]}  c6 {[%clk 0:10:00]} 4. Nc3 {[%clk 0:08:47]}  e6 {[%clk 0:10:01]} 5. d4 {[%clk 0:08:48]}  Nbd7 {[%clk 0:10:03]} 6. Qc2 {[%clk 0:08:48]}  a5 {[%clk 0:10:01]} 7. e4 {[%clk 0:08:26]}  dxe4 {[%clk 0:09:57]} 8. Nxe4 {[%clk 0:08:28]}  Nxe4 {[%clk 0:09:59]} 9. Qxe4 {[%clk 0:08:30]}  Bb4+ {[%clk 0:10:00]} 10. Bd2 {[%clk 0:08:30]}  Bxd2+ {[%clk 0:09:51]} 11. Nxd2 {[%clk 0:08:32]}  O-O {[%clk 0:09:24]} 12. Nf3 {[%clk 0:08:11]}  Qb6 {[%clk 0:08:06]} 13. Qc2 {[%clk 0:08:10]}  c5 {[%clk 0:07:19]} 14. Rd1 {[%clk 0:07:33]}  Qb4+ {[%clk 0:07:19]} 15. Qd2 {[%clk 0:06:37]}  cxd4 {[%clk 0:07:13]} 16. Nxd4 {[%clk 0:06:35]}  Nc5 {[%clk 0:07:01]} 17. a3 {[%clk 0:06:19]}  Qxd2+ {[%clk 0:07:02]} 18. Rxd2 {[%clk 0:06:21]}  e5 {[%clk 0:06:55]} 19. Nb5 {[%clk 0:06:21]}  Bf5 {[%clk 0:06:33]} 20. Rd5 {[%clk 0:06:06]}  b6 {[%clk 0:05:28]} 1/2-1/2


[Site "Internet"]

[Event "Chessable Masters - Torneo preliminare"]
[White "Darini, Pouria"]
[Black "Bok, Benjamin"]
[WhiteFideId "12502200"]
[BlackFideId "1017063"]
[WhiteElo "2573"]
[BlackElo "2608"]
[Result "1-0"]
[Round "2"]
[TimeControl "600+2"]
[Date "2023.03.13"]
[WhiteClock "0:00:12"]
[BlackClock "0:00:06"]

1. e4 {[%clk 0:10:00]}  e5 {[%clk 0:09:57]} 2. Bc4 {[%clk 0:09:58]}  Nf6 {[%clk 0:09:57]} 3. d3 {[%clk 0:09:59]}  Nc6 {[%clk 0:09:59]} 4. Nc3 {[%clk 0:09:55]}  Bb4 {[%clk 0:09:57]} 5. Ne2 {[%clk 0:09:48]}  d5 {[%clk 0:09:54]} 6. exd5 {[%clk 0:09:49]}  Nxd5 {[%clk 0:09:56]} 7. O-O {[%clk 0:09:50]}  Be6 {[%clk 0:09:56]} 8. a3 {[%clk 0:08:51]}  Bxc3 {[%clk 0:09:33]} 9. bxc3 {[%clk 0:08:40]}  O-O {[%clk 0:09:34]} 10. Re1 {[%clk 0:08:19]}  Qd7 {[%clk 0:09:30]} 11. Rb1 {[%clk 0:07:57]}  Nb6 {[%clk 0:09:13]} 12. Bxe6 {[%clk 0:07:46]}  Qxe6 {[%clk 0:09:15]} 13. f4 {[%clk 0:07:30]}  Rfe8 {[%clk 0:08:51]} 14. Ng3 {[%clk 0:07:00]}  Qd7 {[%clk 0:08:23]} 15. f5 {[%clk 0:05:42]}  f6 {[%clk 0:06:29]} 16. Qf3 {[%clk 0:05:42]}  Ne7 {[%clk 0:05:07]} 17. Rf1 {[%clk 0:05:36]}  Rab8 {[%clk 0:04:23]} 18. Ne4 {[%clk 0:05:36]}  Nbc8 {[%clk 0:04:12]} 19. Qg4 {[%clk 0:02:18]}  Kh8 {[%clk 0:04:11]} 20. Rf3 {[%clk 0:02:07]}  Nd6 {[%clk 0:03:58]} 21. Nc5 {[%clk 0:02:08]}  Qc8 {[%clk 0:01:12]} 22. Qh5 {[%clk 0:01:25]}  Ndxf5 {[%clk 0:01:04]} 23. Rh3 {[%clk 0:01:26]}  h6 {[%clk 0:00:59]} 24. Bd2 {[%clk 0:01:10]}  Rf8 {[%clk 0:00:41]} 25. Rf1 {[%clk 0:01:09]}  b6 {[%clk 0:00:39]} 26. Ne4 {[%clk 0:00:59]}  Kg8 {[%clk 0:00:35]} 27. Qg4 {[%clk 0:00:49]}  Nd6 {[%clk 0:00:18]} 28. Qh5 {[%clk 0:00:50]}  Nxe4 {[%clk 0:00:17]} 29. dxe4 {[%clk 0:00:52]}  Qe8 {[%clk 0:00:18]} 30. Qg4 {[%clk 0:00:52]}  Qg6 {[%clk 0:00:14]} 31. Qe6+ {[%clk 0:00:54]}  Qf7 {[%clk 0:00:15]} 32. Qg4 {[%clk 0:00:56]}  Kh7 {[%clk 0:00:15]} 33. Rff3 {[%clk 0:00:45]}  Rbd8 {[%clk 0:00:16]} 34. Bxh6 {[%clk 0:00:43]}  Ng6 {[%clk 0:00:07]} 35. Be3+ {[%clk 0:00:14]}  Kg8 {[%clk 0:00:08]} 36. Qh5 {[%clk 0:00:14]}  Qe8 {[%clk 0:00:05]} 37. Qh7+ {[%clk 0:00:12]}  Kf7 {[%clk 0:00:06]} 38. Rhg3 {[%clk 0:00:12]}  Nf4 {[%clk 0:00:04]} 39. Rxg7+ {[%clk 0:00:08]}  Ke6 {[%clk 0:00:05]} 40. Bxf4 {[%clk 0:00:08]}  exf4 {[%clk 0:00:05]} 41. Qf5+ {[%clk 0:00:10]}  Kd6 {[%clk 0:00:06]} 42. Qd5# {[%clk 0:00:12]} 1-0


[Site "Internet"]

[Event "Chessable Masters - Torneo preliminare"]
[White "Anton Guijarro, David"]
[Black "Matamoros Franco, Carlos S."]
[WhiteFideId "2285525"]
[BlackFideId "3600017"]
[WhiteElo "2635"]
[BlackElo "2407"]
[Result "1-0"]
[Round "2"]
[TimeControl "600+2"]
[Date "2023.03.13"]
[WhiteClock "0:03:49"]
[BlackClock "0:02:37"]

1. Nf3 {[%clk 0:10:01]}  Nf6 {[%clk 0:09:58]} 2. b3 {[%clk 0:10:02]}  g6 {[%clk 0:09:56]} 3. Bb2 {[%clk 0:10:02]}  Bg7 {[%clk 0:09:58]} 4. g3 {[%clk 0:10:03]}  d6 {[%clk 0:09:49]} 5. d4 {[%clk 0:10:03]}  a5 {[%clk 0:09:47]} 6. Bg2 {[%clk 0:09:47]}  a4 {[%clk 0:09:45]} 7. c4 {[%clk 0:09:37]}  O-O {[%clk 0:09:38]} 8. O-O {[%clk 0:09:34]}  c5 {[%clk 0:09:33]} 9. dxc5 {[%clk 0:07:51]}  dxc5 {[%clk 0:09:23]} 10. Qc1 {[%clk 0:07:52]}  axb3 {[%clk 0:09:11]} 11. axb3 {[%clk 0:07:52]}  Rxa1 {[%clk 0:09:12]} 12. Bxa1 {[%clk 0:07:53]}  Qb6 {[%clk 0:09:02]} 13. Qa3 {[%clk 0:07:17]}  Nc6 {[%clk 0:08:21]} 14. Nc3 {[%clk 0:07:14]}  Nb4 {[%clk 0:07:40]} 15. Na4 {[%clk 0:06:59]}  Qa5 {[%clk 0:07:31]} 16. Bb2 {[%clk 0:06:24]}  Bd7 {[%clk 0:06:55]} 17. Nxc5 {[%clk 0:05:27]}  Qxc5 {[%clk 0:06:02]} 18. Bd4 {[%clk 0:05:27]}  Qd6 {[%clk 0:05:50]} 19. c5 {[%clk 0:05:26]}  Nc2 {[%clk 0:05:40]} 20. Qb2 {[%clk 0:05:21]}  Qe6 {[%clk 0:04:10]} 21. Qxc2 {[%clk 0:05:19]}  Bb5 {[%clk 0:04:10]} 22. Re1 {[%clk 0:05:09]}  Ra8 {[%clk 0:04:07]} 23. Qb2 {[%clk 0:04:52]}  Qa6 {[%clk 0:03:48]} 24. Ne5 {[%clk 0:04:34]}  Ne8 {[%clk 0:02:52]} 25. Nc4 {[%clk 0:04:01]}  Bxd4 {[%clk 0:02:37]} 26. Qxd4 {[%clk 0:04:02]}  Bc6 {[%clk 0:02:37]} 27. Nb6 {[%clk 0:03:49]} 1-0


[Site "Internet"]

[Event "Chessable Masters - Torneo preliminare"]
[White "Drygalov, Sergey"]
[Black "Haub, Thorsten Michael"]
[WhiteFideId "24171743"]
[BlackFideId "4610776"]
[WhiteElo "2461"]
[BlackElo "2456"]
[Result "1-0"]
[Round "2"]
[TimeControl "600+2"]
[Date "2023.03.13"]
[WhiteClock "0:05:20"]
[BlackClock "0:05:10"]

1. d4 {[%clk 0:09:49]}  e6 {[%clk 0:09:59]} 2. c4 {[%clk 0:09:49]}  f5 {[%clk 0:09:59]} 3. Nf3 {[%clk 0:09:46]}  Nf6 {[%clk 0:10:00]} 4. g3 {[%clk 0:09:46]}  Be7 {[%clk 0:10:00]} 5. Bg2 {[%clk 0:09:47]}  O-O {[%clk 0:10:01]} 6. O-O {[%clk 0:09:48]}  Ne4 {[%clk 0:10:01]} 7. Nc3 {[%clk 0:09:37]}  Bf6 {[%clk 0:09:53]} 8. Qd3 {[%clk 0:09:15]}  Nxc3 {[%clk 0:09:46]} 9. bxc3 {[%clk 0:09:16]}  d6 {[%clk 0:09:04]} 10. e4 {[%clk 0:09:16]}  g6 {[%clk 0:09:01]} 11. Bh6 {[%clk 0:09:13]}  Re8 {[%clk 0:08:53]} 12. h4 {[%clk 0:08:57]}  Nc6 {[%clk 0:08:34]} 13. Rfe1 {[%clk 0:08:45]}  e5 {[%clk 0:07:56]} 14. Ng5 {[%clk 0:08:44]}  f4 {[%clk 0:07:39]} 15. gxf4 {[%clk 0:08:32]}  Bg7 {[%clk 0:06:59]} 16. Bxg7 {[%clk 0:07:57]}  Kxg7 {[%clk 0:06:59]} 17. d5 {[%clk 0:07:56]}  Nb8 {[%clk 0:06:51]} 18. fxe5 {[%clk 0:07:52]}  dxe5 {[%clk 0:06:49]} 19. f4 {[%clk 0:07:45]}  h6 {[%clk 0:06:47]} 20. Nf3 {[%clk 0:07:42]}  Nd7 {[%clk 0:06:35]} 21. fxe5 {[%clk 0:05:51]}  Nxe5 {[%clk 0:06:33]} 22. Nxe5 {[%clk 0:05:52]}  Rxe5 {[%clk 0:06:31]} 23. Qd4 {[%clk 0:05:54]}  Qe7 {[%clk 0:06:29]} 24. c5 {[%clk 0:05:53]}  Bd7 {[%clk 0:06:13]} 25. d6 {[%clk 0:05:49]}  cxd6 {[%clk 0:06:13]} 26. cxd6 {[%clk 0:05:50]}  Qe8 {[%clk 0:06:09]} 27. Rf1 {[%clk 0:05:50]}  b6 {[%clk 0:05:11]} 28. Rf3 {[%clk 0:05:42]}  Rc8 {[%clk 0:05:11]} 29. Raf1 {[%clk 0:05:43]}  Rc5 {[%clk 0:05:10]} 30. Qf2 {[%clk 0:05:20]} 1-0


[Site "Internet"]

[Event "Chessable Masters - Torneo preliminare"]
[White "Wagner, Dennis"]
[Black "Sarana, Alexey"]
[WhiteFideId "24650684"]
[BlackFideId "24133795"]
[WhiteElo "2456"]
[BlackElo "2643"]
[Result "1/2-1/2"]
[Round "2"]
[TimeControl "600+2"]
[Date "2023.03.13"]
[WhiteClock "0:02:28"]
[BlackClock "0:05:12"]

1. d4 {[%clk 0:10:01]}  Nf6 {[%clk 0:09:56]} 2. Nf3 {[%clk 0:10:02]}  d5 {[%clk 0:09:57]} 3. c4 {[%clk 0:10:03]}  e6 {[%clk 0:09:58]} 4. g3 {[%clk 0:10:01]}  Bb4+ {[%clk 0:09:57]} 5. Bd2 {[%clk 0:10:01]}  Be7 {[%clk 0:09:58]} 6. Bg2 {[%clk 0:10:01]}  c6 {[%clk 0:10:00]} 7. O-O {[%clk 0:09:59]}  b6 {[%clk 0:10:00]} 8. Qc2 {[%clk 0:09:35]}  O-O {[%clk 0:09:59]} 9. Rd1 {[%clk 0:09:30]}  Nbd7 {[%clk 0:09:52]} 10. b3 {[%clk 0:09:28]}  Bb7 {[%clk 0:09:53]} 11. Nc3 {[%clk 0:09:29]}  Rc8 {[%clk 0:09:48]} 12. e4 {[%clk 0:09:26]}  dxe4 {[%clk 0:09:45]} 13. Nxe4 {[%clk 0:08:05]}  c5 {[%clk 0:09:45]} 14. Nxf6+ {[%clk 0:08:04]}  Bxf6 {[%clk 0:09:44]} 15. Ng5 {[%clk 0:07:32]}  Bxg5 {[%clk 0:09:44]} 16. Bxb7 {[%clk 0:07:30]}  Rc7 {[%clk 0:09:45]} 17. Be4 {[%clk 0:07:16]}  g6 {[%clk 0:09:42]} 18. d5 {[%clk 0:06:34]}  exd5 {[%clk 0:09:38]} 19. Bxd5 {[%clk 0:06:30]}  Bxd2 {[%clk 0:09:39]} 20. Rxd2 {[%clk 0:06:01]}  Qf6 {[%clk 0:09:38]} 21. Re1 {[%clk 0:06:01]}  Kg7 {[%clk 0:09:27]} 22. Rde2 {[%clk 0:05:58]}  Nb8 {[%clk 0:09:26]} 23. Qb2 {[%clk 0:05:27]}  Qxb2 {[%clk 0:09:19]} 24. Rxb2 {[%clk 0:05:29]}  Rd8 {[%clk 0:09:15]} 25. Rbe2 {[%clk 0:05:16]}  Rdd7 {[%clk 0:09:15]} 26. Kg2 {[%clk 0:04:47]}  Na6 {[%clk 0:09:11]} 27. a3 {[%clk 0:04:38]}  Nb8 {[%clk 0:09:12]} 28. h4 {[%clk 0:04:22]}  Nc6 {[%clk 0:09:13]} 29. Bxc6 {[%clk 0:04:16]}  Rxc6 {[%clk 0:09:15]} 30. Re7 {[%clk 0:04:17]}  Rcc7 {[%clk 0:09:14]} 31. Rxd7 {[%clk 0:04:15]}  Rxd7 {[%clk 0:09:15]} 32. Re3 {[%clk 0:04:16]}  h5 {[%clk 0:09:13]} 33. Kf3 {[%clk 0:04:16]}  Rd2 {[%clk 0:09:09]} 34. Re2 {[%clk 0:03:27]}  Rd1 {[%clk 0:09:09]} 35. Re3 {[%clk 0:03:22]}  Rb1 {[%clk 0:09:02]} 36. Rd3 {[%clk 0:03:20]}  Kf6 {[%clk 0:09:02]} 37. Ke4 {[%clk 0:03:19]}  Ke6 {[%clk 0:09:03]} 38. Re3 {[%clk 0:03:15]}  Rd1 {[%clk 0:08:59]} 39. Kf4+ {[%clk 0:03:03]}  Kf6 {[%clk 0:08:59]} 40. Ke4 {[%clk 0:03:00]}  Rd4+ {[%clk 0:08:56]} 41. Kf3 {[%clk 0:03:02]}  Rd2 {[%clk 0:08:55]} 42. a4 {[%clk 0:02:50]}  Kf5 {[%clk 0:08:46]} 43. Rc3 {[%clk 0:02:51]}  f6 {[%clk 0:08:02]} 44. Ke3 {[%clk 0:02:51]}  Rd4 {[%clk 0:07:53]} 45. Kf3 {[%clk 0:02:52]}  g5 {[%clk 0:07:51]} 46. hxg5 {[%clk 0:02:54]}  fxg5 {[%clk 0:07:53]} 47. Re3 {[%clk 0:02:52]}  Rd2 {[%clk 0:07:52]} 48. Kg2 {[%clk 0:02:42]}  Rb2 {[%clk 0:07:34]} 49. Kf3 {[%clk 0:02:42]}  Rb1 {[%clk 0:06:56]} 50. Kg2 {[%clk 0:02:42]}  Rd1 {[%clk 0:06:17]} 51. Kf3 {[%clk 0:02:41]}  Rd6 {[%clk 0:06:16]} 52. Kg2 {[%clk 0:02:39]}  Re6 {[%clk 0:06:06]} 53. Rf3+ {[%clk 0:02:40]}  Kg6 {[%clk 0:05:54]} 54. Rd3 {[%clk 0:02:40]}  Re1 {[%clk 0:05:20]} 55. Rd7 {[%clk 0:02:38]}  Rb1 {[%clk 0:05:19]} 56. Rxa7 {[%clk 0:02:37]}  Rxb3 {[%clk 0:05:20]} 57. a5 {[%clk 0:02:38]}  b5 {[%clk 0:05:08]} 58. cxb5 {[%clk 0:02:26]}  Rxb5 {[%clk 0:05:10]} 59. a6 {[%clk 0:02:27]}  Ra5 {[%clk 0:05:11]} 60. Rc7 {[%clk 0:02:27]}  Rxa6 {[%clk 0:05:12]} 61. Rxc5 {[%clk 0:02:28]} 1/2-1/2


[Site "Internet"]

[Event "Chessable Masters - Torneo preliminare"]
[White "Mamedov, Rauf"]
[Black "Alonso Rosell, Alvar"]
[WhiteFideId "13401653"]
[BlackFideId "2270544"]
[WhiteElo "2632"]
[BlackElo "2473"]
[Result "0-1"]
[Round "2"]
[TimeControl "600+2"]
[Date "2023.03.13"]
[WhiteClock "0:03:43"]
[BlackClock "0:03:42"]

1. e4 {[%clk 0:10:01]}  e5 {[%clk 0:09:59]} 2. Nf3 {[%clk 0:10:02]}  Nc6 {[%clk 0:10:00]} 3. Bb5 {[%clk 0:10:03]}  a6 {[%clk 0:10:01]} 4. Ba4 {[%clk 0:10:04]}  d6 {[%clk 0:10:02]} 5. c3 {[%clk 0:09:59]}  Bd7 {[%clk 0:10:02]} 6. d4 {[%clk 0:10:00]}  g6 {[%clk 0:10:03]} 7. dxe5 {[%clk 0:09:58]}  Nxe5 {[%clk 0:09:58]} 8. Bxd7+ {[%clk 0:09:59]}  Nxd7 {[%clk 0:09:56]} 9. O-O {[%clk 0:09:58]}  Bg7 {[%clk 0:09:55]} 10. Bg5 {[%clk 0:09:58]}  Ngf6 {[%clk 0:09:50]} 11. Nbd2 {[%clk 0:09:59]}  O-O {[%clk 0:09:51]} 12. Re1 {[%clk 0:10:00]}  Re8 {[%clk 0:09:39]} 13. Qc2 {[%clk 0:10:00]}  a5 {[%clk 0:09:40]} 14. Rad1 {[%clk 0:10:00]}  h6 {[%clk 0:09:06]} 15. Bh4 {[%clk 0:09:59]}  a4 {[%clk 0:09:03]} 16. Nc4 {[%clk 0:09:58]}  b5 {[%clk 0:08:58]} 17. Ncd2 {[%clk 0:09:45]}  Qb8 {[%clk 0:08:58]} 18. Bg3 {[%clk 0:09:28]}  Nh5 {[%clk 0:08:51]} 19. a3 {[%clk 0:09:24]}  Qb7 {[%clk 0:08:50]} 20. Bh4 {[%clk 0:09:08]}  Nc5 {[%clk 0:08:46]} 21. Nd4 {[%clk 0:09:03]}  Re5 {[%clk 0:08:22]} 22. f3 {[%clk 0:08:40]}  Rae8 {[%clk 0:08:21]} 23. Bf2 {[%clk 0:08:42]}  d5 {[%clk 0:07:47]} 24. b4 {[%clk 0:06:29]}  axb3 {[%clk 0:06:01]} 25. N2xb3 {[%clk 0:06:29]}  Nxb3 {[%clk 0:06:02]} 26. Qxb3 {[%clk 0:06:30]}  dxe4 {[%clk 0:05:47]} 27. fxe4 {[%clk 0:06:31]}  Nf4 {[%clk 0:05:09]} 28. Re3 {[%clk 0:04:15]}  Rxe4 {[%clk 0:04:17]} 29. Rf3 {[%clk 0:04:16]}  c5 {[%clk 0:03:56]} 30. Qxb5 {[%clk 0:03:57]}  Bxd4 {[%clk 0:03:52]} 31. Qxe8+ {[%clk 0:03:41]}  Rxe8 {[%clk 0:03:52]} 32. cxd4 {[%clk 0:03:43]}  Ne2+ {[%clk 0:03:42]} 0-1


[Site "Internet"]